bitfinex-derivatives/quotes_SOLF0:USTF0_20250228
["timestamp","ask_amount","ask_price","bid_price","bid_amount"]
[1740720427875,7.8637,127.3,127.21,0.0589729]
[1740720428274,7.8637,127.3,127.2,14.4]
[1740720428474,7.864,127.29,127.2,14.4]
[1740720428675,7.7896,127.32,127.2,14.4]
[1740720428978,0.05278088,127.26,127.23,0.05337134]
[1740720429180,7.7896,127.32,127.2,14.4]
[1740720429382,0.05666796,127.26,127.23,0.05379328]
[1740720429772,3.7598,127.32,127.2,14.4]
[1740720429975,0.05779254,127.26,127.23,0.05051161]
[1740720430376,3.7598,127.32,127.15,14.38]
[1740720430575,0.05671534,127.26,127.23,0.05917214]
[1740720430978,3.7598,127.32,127.15,14.38]
[1740720431281,0.05017311,127.26,127.23,0.05645711]
[1740720431681,3.7598,127.32,127.15,14.38]
[1740720431879,0.05436846,127.26,127.23,0.05024809]
[1740720432281,3.7598,127.32,127.15,14.38]
[1740720432481,0.05899728,127.26,127.23,0.05124116]
[1740720432880,3.7598,127.32,127.15,14.38]
[1740720433079,0.0599833,127.26,127.23,0.05078052]
[1740720433281,7.8693,127.21,127.14,1.57306905]
[1740720433678,8.3215,127.25,127.14,1.57306905]
[1740720434679,0.05429662,127.21,127.18,0.05544807]
[1740720434882,0.05429662,127.21,127.11,214.06]
[1740720435077,0.05429662,127.21,126.95,34.49092594]
[1740720435278,198.3215,127.25,126.99,215.32651906]
[1740720435479,7.8747,127.12,127.0,15.80651906]
[1740720435683,7.8747,127.12,127.01,1.42651906]
[1740720435883,7.8747,127.12,127.01,3.00119821]
[1740720436085,0.06005789,127.08,127.05,0.05304578]
[1740720436483,190.0,127.22,127.01,1.57467915]
[1740720436681,0.05013045,127.08,127.05,0.05786122]
[1740720437077,7.8752,127.11,127.01,1.57467915]
[1740720437384,0.05434266,127.08,127.05,0.05978834]
[1740720439279,7.93164266,127.08,127.05,0.05978834]
[1740720439485,0.05434266,127.08,127.05,0.05978834]
[1740720440684,7.878,127.06,127.05,0.05978834]
[1740720440982,0.05434266,127.08,127.01,1.57467915]
[1740720441175,0.05434266,127.08,126.99,213.9]
[1740720441374,18.2324,127.17,126.99,213.9]
[1740720441375,190.0,127.15,126.99,213.9]
[1740720441575,7.8758,127.1,126.99,213.9]
[1740720441776,8.2061,127.09,126.99,213.9]
[1740720442277,7.93297581,127.05,127.03,0.05289998]
[1740720442482,7.93297581,127.05,126.99,213.9]
[1740720442678,0.05397581,127.05,126.95,0.0798]
[1740720443078,8.2061,127.09,126.94,14.4]
[1740720443586,0.0586591,127.03,127.0,0.05386255]
[1740720443983,7.8805,127.02,126.94,14.4]
[1740720444194,0.054779,127.03,127.0,0.05060162]
[1740720444480,7.8803,127.03,126.94,14.4]
[1740720444685,0.05912428,127.03,127.0,0.05904795]
[1740720444986,190.0,127.08,126.94,14.4]
[1740720445181,0.05348722,127.03,127.0,0.04969339]
[1740720445582,0.05348722,127.03,126.94,14.4]
[1740720445885,190.0,127.08,127.0,0.05000105]
[1740720446086,0.05134503,127.0,126.94,15.9755475]
[1740720446284,0.05134503,127.0,126.97,0.04972971]
[1740720446483,3.9559,127.08,126.97,0.04972971]
[1740720446685,0.05349462,126.98,126.97,0.04972971]
[1740720446986,193.9559,127.08,126.94,15.9755475]
[1740720447186,0.05352981,126.99,126.96,0.05830013]
[1740720447379,7.8805,127.02,126.96,7.8836]
[1740720447582,193.9559,127.08,126.96,7.93545875]
[1740720447781,0.05235265,126.99,126.96,0.05185875]
[1740720447981,193.9559,127.08,126.95,7.8846]
[1740720448183,0.05149262,126.99,126.96,0.05816133]
[1740720448585,193.9559,127.08,126.96,23.62]
[1740720448789,0.05545762,126.99,126.96,0.05612542]
[1740720449090,193.9559,127.08,126.96,0.05142554]
[1740720449293,0.05868423,126.99,126.96,0.05142554]
[1740720449593,193.9559,127.08,126.96,7.93786868]
[1740720449894,193.9559,127.08,126.96,7.8838]
[1740720450194,7.8809,127.02,127.01,0.05754137]
[1740720452195,0.0586591,127.03,126.94,1.5755475]
[1740720452696,3.9559,127.08,126.98,7.8825]
[1740720453097,3.9559,127.08,126.94,1.5755475]
[1740720453392,0.05548141,127.04,126.94,1.5755475]
[1740720453598,0.05548141,127.04,127.0,0.03992871]
[1740720453791,3.9559,127.08,126.94,1.5755475]
[1740720453993,0.05894501,127.03,126.94,1.5755475]
[1740720454295,3.9559,127.08,126.94,9.4609475]
[1740720454499,7.8827,126.99,126.94,1.5755475]
[1740720454692,14.4,127.07,126.94,1.5755475]
[1740720454900,0.05485195,126.98,126.94,1.5755475]
[1740720455302,14.4,127.07,126.94,1.5755475]
[1740720455498,0.05325725,126.97,126.9,214.04]
[1740720455692,190.0,127.06,126.9,214.04]
[1740720455994,0.04982222,126.95,126.94,7.8853]
[1740720456204,190.0,127.06,126.94,7.8853]
[1740720456503,0.05887506,126.99,126.93,7.8856]
[1740720456707,0.05887506,126.99,126.9,215.61604412]
[1740720456995,190.0,127.06,126.9,215.61604412]
[1740720457198,0.05680802,126.96,126.9,215.61604412]
[1740720457398,190.0,127.04,126.91,7.8869]
[1740720457599,2.946e-05,126.94,126.9,239.25604412]
[1740720457801,193.9559,127.08,126.91,0.172]
[1740720457999,3.9559,127.08,126.91,0.172]
[1740720458197,3.9559,127.08,126.92,1.43032279]
[1740720458397,3.9559,127.08,127.04,7.8789]
[1740720458597,214.2,127.19,126.91,0.172]
[1740720458598,113.25086832,127.17,127.02,14.4]
[1740720458801,7.8034,127.16,127.02,14.4]
[1740720458997,0.06025305,127.07,127.05,0.0523]
[1740720459202,0.06025305,127.07,127.0,214.2]
[1740720459203,14.4,127.14,126.97,14.4]
[1740720459402,0.04982298,127.07,127.05,0.05126888]
[1740720459696,14.4,127.14,126.97,14.4]
[1740720459899,14.4,127.14,126.97,22.2834]
[1740720460494,14.4,127.14,126.97,14.4]
[1740720460892,0.05196931,127.07,126.97,14.4]
[1740720461097,7.8801,127.03,126.97,14.4]
[1740720461403,0.05243472,127.03,126.97,14.4]
[1740720462003,0.05243472,127.03,126.93,0.1074]
[1740720462303,1.44820453,127.13,126.93,14.5074]
[1740720462494,1.44820453,127.13,126.94,7.885]
[1740720462699,7.883,126.98,126.93,14.4]
[1740720462907,14.4,127.07,126.93,14.4]
[1740720463204,7.808,127.06,126.93,14.4]
[1740720463407,0.05175943,127.01,126.93,14.4]
[1740720463906,0.05185902,126.98,126.92,214.2]
[1740720464393,7.8844,126.96,126.92,214.2]
[1740720464595,0.05185902,126.98,126.92,214.2]
[1740720464796,4.079,127.03,126.92,222.0864]
[1740720465098,4.079,127.03,126.92,214.2]
[1740720465298,4.079,127.03,126.9,1.57604412]
[1740720465299,0.05515876,126.99,126.9,1.57604412]
[1740720465500,190.0,127.02,126.9,1.57604412]
[1740720465799,0.05650032,126.96,126.91,7.8873]
[1740720466002,0.05650032,126.96,126.9,1.57604412]
[1740720467008,0.05650032,126.96,126.84,228.6]
[1740720467209,190.0,127.02,126.85,1.57666535]
[1740720467705,0.05374167,126.95,126.85,1.57666535]
[1740720467908,190.0,127.02,126.85,1.57666535]
[1740720468208,0.05589695,126.91,126.85,1.57666535]
[1740720468401,7.8854,126.94,126.85,1.57666535]
[1740720468707,0.05205506,126.89,126.88,7.8891]
[1740720468909,7.8854,126.94,126.88,7.8891]
[1740720469106,0.05694783,126.9,126.88,7.8891]
[1740720469406,0.05694783,126.9,126.88,31.5291]
[1740720469909,0.05694783,126.9,126.87,7.8897]
[1740720470297,0.05694783,126.9,126.87,31.5297]
[1740720470498,190.0,127.01,126.89,7.8885]
[1740720470808,190.0,127.01,126.85,1.57666535]
[1740720471007,190.0,127.01,126.86,1.43101117]
[1740720471307,190.0,127.01,126.87,1.5764168]
[1740720471507,7.8837,126.97,126.87,1.5764168]
[1740720471707,0.05441398,126.95,126.93,0.05797895]
[1740720472509,4.079,127.03,126.93,23.69797895]
[1740720472709,4.079,127.03,126.91,14.4]
[1740720473103,7.8827,126.99,126.93,7.8856]
[1740720473507,4.079,127.03,126.95,0.05688556]
[1740720473705,0.05141108,126.97,126.95,0.05688556]
[1740720473906,4.079,127.03,126.91,14.4]
[1740720474107,0.05969849,126.97,126.95,0.06044214]
[1740720474307,4.079,127.03,126.91,14.4]
[1740720474602,0.06023411,126.97,126.95,0.06035525]
[1740720474808,190.0,127.02,126.87,1.5764168]
[1740720475009,190.0,127.01,126.87,1.5764168]
[1740720475907,190.0,127.01,126.93,0.05203768]
[1740720476213,190.0,127.0,126.87,1.5764168]
[1740720476714,190.0,127.0,126.87,9.4657168]
[1740720476913,190.0,127.0,126.87,1.5764168]
[1740720477312,7.8858,126.94,126.88,7.8887]
[1740720477610,0.05730396,126.92,126.87,1.5764168]
[1740720477911,0.05475624,126.91,126.87,9.4660168]
[1740720478113,190.0,127.0,126.87,1.5764168]
[1740720478310,0.05896638,126.9,126.87,1.5764168]
[1740720478503,0.0599865,126.9,126.87,1.5764168]
[1740720478711,0.0599865,126.9,126.88,7.889]
[1740720479414,0.0599865,126.9,126.87,1.5764168]
[1740720480315,0.0599865,126.9,126.84,228.6]
[1740720480610,0.0599865,126.9,126.84,214.2]
[1740720480916,7.8887,126.89,126.84,214.2]
[1740720481417,7.9481865,126.9,126.84,7.8915]
[1740720481619,0.0599865,126.9,126.81,14.4]
[1740720481910,3.8919,126.96,126.82,1.57703832]
[1740720482110,190.0,127.01,126.83,1.43138094]
[1740720482311,3.8919,127.01,126.83,39.69201729]
[1740720482514,8.1993,127.05,126.85,23.5]
[1740720482716,12.1465,127.05,126.87,23.5]
[1740720482922,12.1465,127.05,126.88,32.16830984]
[1740720483111,12.1465,127.05,126.89,215.89616833]
[1740720483417,2.86e-05,126.98,126.95,0.05163576]
[1740720483622,2.86e-05,126.98,126.96,14.4]
[1740720483910,8.0484,127.05,126.96,14.4]
[1740720484117,43.16248736,127.08,126.96,14.6503]
[1740720484712,0.05556423,127.03,127.01,0.05776582]
[1740720484909,43.16248736,127.08,127.01,0.05776582]
[1740720485115,0.05851855,127.03,126.96,14.4]
[1740720485311,0.05851855,127.03,126.95,19.73028959]
[1740720485508,43.16248736,127.08,126.91,19.73028959]
[1740720485712,43.16248736,127.08,126.91,34.13028959]
[1740720485913,43.16248736,127.08,126.91,14.4]
[1740720486314,1.44869549,127.07,126.89,1.57616833]
[1740720486522,0.05867316,127.01,126.98,6.295e-05]
[1740720486711,14.45867316,127.01,126.98,6.295e-05]
[1740720487017,7.8867,126.92,126.88,87.19737843]
[1740720487217,8.2767,127.0,126.88,87.19737843]
[1740720487719,7.8872,126.92,126.88,87.19737843]
[1740720488110,8.2767,127.0,126.88,87.19737843]
[1740720488313,0.05818813,126.91,126.88,87.19737843]
[1740720488514,7.8871,126.92,126.88,87.19737843]
[1740720488714,4.15690301,126.91,126.88,87.19737843]
[1740720490019,4.15690301,126.91,126.79,214.28]
[1740720490218,4.15690301,126.91,126.8,15.83179342]
[1740720490419,3.8275,126.9,126.8,14.4]
[1740720490624,0.05448685,126.86,126.83,7.8917]
[1740720490825,0.05448685,126.86,126.8,14.4]
[1740720491324,0.05448685,126.86,126.79,215.85741146]
[1740720491728,0.05448685,126.86,126.79,223.75171146]
[1740720491929,0.05448685,126.86,126.79,215.85741146]
[1740720492130,0.05448685,126.86,126.8,7.8936]
[1740720492324,0.05448685,126.86,126.79,215.85741146]
[1740720492726,0.05448685,126.86,126.8,7.8937]
[1740720493031,0.05448685,126.86,126.79,215.85741146]
[1740720493828,0.05448685,126.86,126.81,7.8934]
[1740720494029,0.05448685,126.86,126.79,215.85741146]
[1740720494426,7.8914,126.85,126.79,215.85741146]
[1740720494625,4.0225,126.84,126.79,215.85741146]
[1740720494824,4.0225,126.84,126.79,1.57741146]
[1740720495122,3.9752314,126.83,126.79,1.57741146]
[1740720495527,0.0507314,126.83,126.79,1.57741146]
[1740720496030,0.0507314,126.83,126.81,7.8934]
[1740720496422,3.9189,126.9,126.74,14.42]
[1740720496423,190.0,126.89,126.74,14.42]
[1740720496627,0.05709324,126.83,126.75,1.43239168]
[1740720496827,0.05709324,126.83,126.74,14.42]
[1740720497022,4.0336,126.86,126.74,14.42]
[1740720497228,0.05408985,126.8,126.74,14.42]
[1740720497529,0.05408985,126.8,126.78,7.8953]
[1740720498731,0.05408985,126.8,126.74,14.42]
[1740720499032,3.9245,126.85,126.75,1.57790927]
[1740720499733,3.9245,126.85,126.83,7.8921]
[1740720499932,3.9245,126.85,126.75,1.57790927]
[1740720500229,4.0336,126.86,126.75,1.57790927]
[1740720500230,4.0336,126.86,126.83,7.8918]
[1740720500427,0.05512977,126.81,126.79,0.05940315]
[1740720500733,4.0336,126.86,126.75,1.57790927]
[1740720500931,7.71e-05,126.81,126.79,0.05998793]
[1740720501231,7.8056,126.89,126.76,14.42]
[1740720501428,7.8911,126.85,126.76,14.42]
[1740720501628,7.8056,126.89,126.76,14.42]
[1740720501830,7.8056,126.89,126.78,7.8953]
[1740720502130,7.8923,126.83,126.81,0.05099438]
[1740720502330,7.8923,126.83,126.76,22.3164]
[1740720502533,7.8942,126.8,126.75,1.57790927]
[1740720503036,3.86164405,126.81,126.78,0.05866349]
[1740720503430,3.8073,126.81,126.71,214.38]
[1740720503631,3.86578359,126.81,126.78,0.05430828]
[1740720503832,3.8073,126.81,126.71,214.38]
[1740720504132,3.86780786,126.81,126.71,214.38]
[1740720504332,11.7008,126.81,126.75,0.05583973]
[1740720504533,0.05896764,126.77,126.75,0.05583973]
[1740720505030,0.05896764,126.77,126.75,7.95253973]
[1740720505334,214.44,126.93,126.75,23.71583973]
[1740720505335,228.86,126.93,126.75,23.71583973]
[1740720505635,11.4703,126.92,126.71,214.38]
[1740720506137,7.894,126.81,126.71,214.38]
[1740720506633,0.05263334,126.77,126.75,0.05134973]
[1740720507032,7.8943,126.8,126.74,7.8974]
[1740720507233,0.05714919,126.77,126.75,0.05088545]
[1740720507431,7.8936,126.81,126.71,214.38]
[1740720507635,0.05681051,126.77,126.75,0.05941619]
[1740720508837,7.95281051,126.77,126.75,0.05941619]
[1740720509838,0.05681051,126.77,126.75,0.05941619]
[1740720510135,190.0,126.91,126.75,38.13941619]
[1740720510439,4.1847,126.9,126.75,14.42]
[1740720511038,4.1847,126.9,126.76,0.3074]
[1740720511239,4.1847,126.9,126.77,1.43218228]
[1740720511435,4.1847,126.9,126.82,0.05825549]
[1740720511436,3.313e-05,126.84,126.82,0.05825549]
[1740720511735,4.1847,126.9,126.82,14.42]
[1740720511939,190.0,126.89,126.76,0.3074]
[1740720512141,4.1847,126.9,126.76,0.3074]
[1740720512334,4.1847,126.9,126.77,7.8955]
[1740720512641,0.05357422,126.84,126.82,0.05179377]
[1740720512836,7.8928,126.83,126.75,7.897]
[1740720513031,8.2131,126.82,126.72,14.7274]
[1740720513534,16.1065,126.82,126.75,7.8968]
[1740720513733,16.1065,126.82,126.72,14.7274]
[1740720513734,8.2131,126.82,126.72,14.7274]
[1740720513942,0.05001869,126.8,126.77,0.06008169]
[1740720515743,7.8949,126.79,126.72,7.8989]
[1740720515940,3.8539,126.78,126.69,14.42]
[1740720516744,8.355e-05,126.75,126.72,0.05460038]
[1740720516946,4.1043,126.84,126.75,7.8967]
[1740720517137,7.8933,126.82,126.75,7.8967]
[1740720517538,11.9961,126.84,126.69,15.99865656]
[1740720517846,4.1043,126.84,126.7,3.01134933]
[1740720518041,0.05993706,126.78,126.77,7.896]
[1740720518246,0.05993706,126.78,126.71,1.57840738]
[1740720518443,0.05343161,126.78,126.75,0.05563313]
[1740720519143,0.05343161,126.78,126.77,7.896]
[1740720520043,0.05343161,126.78,126.75,0.05563313]
[1740720520044,0.05343161,126.78,126.76,7.8965]
[1740720520244,0.05343161,126.78,126.75,0.05563313]
[1740720522550,7.94913161,126.78,126.75,0.05563313]
[1740720523150,0.05343161,126.78,126.75,0.05563313]
[1740720523352,0.05343161,126.78,126.71,1.57840738]
[1740720524151,0.05343161,126.78,126.68,115.45593308]
[1740720524545,190.0,126.81,126.72,0.05394266]
[1740720524746,2.914e-05,126.74,126.72,0.05394266]
[1740720524954,190.0,126.81,126.76,7.8962]
[1740720525253,190.0,126.81,126.68,115.45593308]
[1740720525456,190.0,126.81,126.69,1.43297822]
[1740720525754,197.8939,126.81,126.69,1.43297822]
[1740720526253,0.05939136,126.76,126.75,7.8972]
[1740720526449,4.0365,126.82,126.75,7.8972]
[1740720526649,4.0365,126.82,126.74,14.42]
[1740720527049,4.1043,126.84,126.74,14.42]
[1740720527244,8.3083,126.88,126.75,214.9446]
[1740720527446,4.1221,126.88,126.76,1.57778479]
[1740720527749,0.05680087,126.83,126.8,0.05502645]
[1740720527949,8.7e-07,126.83,126.82,7.8925]
[1740720528452,8.7e-07,126.83,126.81,14.42]
[1740720528650,8.7e-07,126.83,126.76,1.57778479]
[1740720529159,8.7e-07,126.83,126.78,0.05218488]
[1740720531450,8.7e-07,126.83,126.82,7.8929]
[1740720531854,8.7e-07,126.83,126.82,31.5529]
[1740720532852,8.7e-07,126.83,126.81,0.05184812]
[1740720534646,8.7e-07,126.83,126.75,101.61737843]
[1740720534856,4.0013,126.9,126.75,101.61737843]
[1740720534857,190.0,126.89,126.75,101.61737843]
[1740720535057,190.0,126.88,126.75,101.61737843]
[1740720535452,7.8937,126.81,126.75,101.61737843]
[1740720535654,14.42,126.86,126.75,87.19737843]
[1740720535858,0.05003969,126.79,126.77,0.05684442]
[1740720536157,0.05467691,126.79,126.75,87.19737843]
[1740720536655,190.05467691,126.79,126.75,87.19737843]
[1740720537157,197.94987691,126.79,126.76,0.05898388]
[1740720537654,0.05467691,126.79,126.76,0.05898388]
[1740720539057,190.05467691,126.79,126.76,0.05898388]
[1740720539360,193.95457691,126.79,126.65,302.24177843]
[1740720539657,193.8999,126.79,126.65,302.24177843]
[1740720540358,0.05097707,126.75,126.72,0.05271361]
[1740720540557,0.05097707,126.75,126.68,115.45593308]
[1740720540756,0.05097707,126.75,126.65,214.54]
[1740720541151,7.9001,126.71,126.64,95.10127843]
[1740720542064,0.05859283,126.69,126.66,0.05815449]
[1740720543651,0.05859283,126.69,126.66,7.96085449]
[1740720544254,0.05859283,126.69,126.66,0.05815449]
[1740720544458,0.05859283,126.69,126.68,7.9016]
[1740720545063,7.8962,126.77,126.69,7.9006]
[1740720545258,190.0,126.78,126.69,7.9006]
[1740720545562,190.0,126.78,126.7,7.9002]
[1740720545762,4.0107,126.77,126.68,14.42]
[1740720546261,0.0586333,126.74,126.68,5.15714234]
[1740720547559,0.0586333,126.74,126.7,0.05398961]
[1740720548365,190.0,126.73,126.58,1.29869913]
[1740720548563,194.0257,126.72,126.58,1.29869913]
[1740720548859,194.0257,126.72,126.59,7.9066]
[1740720549165,4.0257,126.72,126.58,0.76929913]
[1740720549363,0.05757315,126.67,126.64,0.05153291]
[1740720549557,190.0,126.66,126.58,0.76929913]
[1740720549758,311.5,126.74,126.57,202.75714041]
[1740720549759,194.0257,126.65,126.57,202.75714041]
[1740720550162,190.0,126.64,126.57,202.75714041]
[1740720550558,0.05493593,126.62,126.57,202.75714041]
[1740720550760,0.05493593,126.62,126.59,0.0417004]
[1740720551669,0.05493593,126.62,126.57,87.19737843]
[1740720552969,0.05493593,126.62,126.51,14.42]
[1740720553168,3.9602,126.63,126.52,3.01575125]
[1740720553364,3.9602,126.63,126.58,7.9073]
[1740720553570,0.05588323,126.59,126.58,7.9073]
[1740720554070,0.05043816,126.6,126.58,7.9073]
[1740720554476,0.05043816,126.6,126.52,1.58077774]
[1740720554676,4.0257,126.65,126.53,1.43462781]
[1740720554876,4.0257,126.65,126.55,0.05043816]
[1740720555079,4.0257,126.65,126.53,1.43462781]
[1740720555881,0.06073057,126.6,126.58,0.05043816]
[1740720556279,4.0257,126.65,126.58,0.05043816]
[1740720556480,0.05592435,126.6,126.58,0.05043816]
[1740720556683,193.8218,126.64,126.58,0.05043816]
[1740720556884,190.0,126.63,126.58,0.05043816]
[1740720557183,0.05019336,126.6,126.58,0.05043816]
[1740720557579,0.05019336,126.6,126.52,1.58077774]
[1740720557774,0.05019336,126.6,126.54,7.9102]
[1740720558080,4.0972,126.62,126.52,1.58077774]
[1740720558384,4.0972,126.62,126.52,7.9114]
[1740720558577,4.0972,126.62,126.48,14.44]
[1740720558776,0.05563353,126.58,126.54,7.9101]
[1740720558978,0.05563353,126.58,126.48,14.44]
[1740720559183,4.0972,126.62,126.48,14.44]
[1740720559378,7.321e-05,126.55,126.51,1.43524004]
[1740720559578,190.0,126.63,126.51,2.27324004]
[1740720559781,3.8218,126.64,126.52,1.43524004]
[1740720559987,3.8218,126.64,126.59,7.9067]
[1740720560183,3.8218,126.64,126.55,14.44]
[1740720560383,3.8218,126.64,126.6,7.9061]
[1740720560578,0.05880552,126.61,126.6,7.9061]
[1740720562279,0.05880552,126.61,126.59,7.9634]
[1740720562483,0.05880552,126.61,126.59,0.0564]
[1740720563579,0.05880552,126.61,126.54,14.44]
[1740720563985,0.05880552,126.61,126.55,1.43468813]
[1740720564185,0.05880552,126.61,126.6,7.9066]
[1740720564886,0.05880552,126.61,126.51,1.58090269]
[1740720565080,190.0,126.63,126.52,1.43492373]
[1740720565285,190.0,126.63,126.58,7.9077]
[1740720565584,0.06023736,126.59,126.56,14.44]
[1740720565789,3.8218,126.64,126.56,14.44]
[1740720565991,0.05485831,126.59,126.56,14.44]
[1740720566381,3.8803,126.64,126.56,14.44]
[1740720566585,0.05348594,126.59,126.56,14.44]
[1740720567784,0.05348594,126.59,126.51,1.58090269]
[1740720567987,193.8803,126.64,126.52,1.43511432]
[1740720568193,0.05509212,126.56,126.52,1.43511432]
[1740720568395,193.8803,126.64,126.52,1.43511432]
[1740720568595,0.05759463,126.55,126.52,1.43511432]
[1740720568792,3.8803,126.64,126.52,1.43511432]
[1740720568995,0.05141772,126.55,126.52,1.43511432]
[1740720569191,3.8803,126.64,126.52,1.43511432]
[1740720569696,0.05901137,126.59,126.52,1.43511432]
[1740720570493,0.05901137,126.59,126.53,0.6827]
[1740720570689,0.05901137,126.59,126.54,1.43511432]
[1740720571095,0.05901137,126.59,126.53,0.6827]
[1740720571295,0.05901137,126.59,126.51,1.58090269]
[1740720571495,3.8803,126.64,126.55,7.9092]
[1740720571694,0.05491889,126.56,126.51,1.58090269]
[1740720571891,190.0,126.63,126.51,1.58090269]
[1740720572091,0.05917268,126.55,126.52,7.9115]
[1740720572394,0.05969578,126.55,126.51,1.58090269]
[1740720572584,0.05969578,126.55,126.52,7.9112]
[1740720572788,0.05969578,126.55,126.51,1.58090269]
[1740720573187,9.578e-05,126.55,126.51,1.58090269]
[1740720573396,9.578e-05,126.55,126.52,1.43515811]
[1740720573896,9.578e-05,126.55,126.54,7.9103]
[1740720574084,9.578e-05,126.55,126.54,9.34522845]
[1740720574285,9.578e-05,126.55,126.54,31.6103]
[1740720574488,9.578e-05,126.55,126.54,33.04518605]
[1740720574892,9.578e-05,126.55,126.53,0.05164765]
[1740720577400,9.578e-05,126.55,126.54,7.9103]
[1740720577591,9.578e-05,126.55,126.54,31.6103]
[1740720577791,9.578e-05,126.55,126.54,33.0451919]
[1740720577999,9.578e-05,126.55,126.54,33.8167919]
[1740720578596,9.578e-05,126.55,126.54,33.0451919]
[1740720582197,4.0257,126.65,126.54,25.13453654]
[1740720582402,4.0257,126.65,126.55,1.43453654]
[1740720582702,4.0257,126.65,126.62,7.9052]
[1740720582897,3.787,126.67,126.56,14.44]
[1740720583203,3.787,126.67,126.6,7.9066]
[1740720583401,0.05800447,126.63,126.6,0.05700456]
[1740720583901,0.05800447,126.63,126.61,7.9059]
[1740720584101,0.05800447,126.63,126.6,0.05700456]
[1740720585503,190.0,126.73,126.61,214.86]
[1740720585702,7.9902,126.74,126.62,1.4345617]
[1740720586002,7.9902,126.74,126.63,14.42]
[1740720586205,7.9902,126.74,126.64,1.5287617]
[1740720586499,7.9902,126.74,126.65,1.43364091]
[1740720586705,3.8162,126.77,126.67,0.05779344]
[1740720586905,0.0523495,126.71,126.67,0.05779344]
[1740720587107,0.0523495,126.71,126.65,0.7011]
[1740720587301,0.0523495,126.71,126.69,7.9005]
[1740720587505,0.0523495,126.71,126.68,0.0559131]
[1740720587702,0.0523495,126.71,126.69,7.9008]
[1740720587898,0.0523495,126.71,126.68,0.0559131]
[1740720588405,0.0523495,126.71,126.59,121.56557418]
[1740720588603,0.0523495,126.71,126.6,15.85389383]
[1740720588802,190.0,126.75,126.61,1.43389383]
[1740720589003,3.8162,126.77,126.63,7.9045]
[1740720589608,3.8162,126.77,126.6,14.42]
[1740720589906,0.05278798,126.71,126.69,0.05355509]
[1740720590109,0.05278798,126.71,126.62,7.9052]
[1740720590305,3.8162,126.77,126.62,7.9052]
[1740720590609,3.8162,126.77,126.6,14.42]
[1740720590808,3.8162,126.77,126.61,1.4340881]
[1740720591309,0.05408205,126.7,126.61,1.4340881]
[1740720591511,0.05408205,126.7,126.66,7.9025]
[1740720591711,3.8162,126.77,126.66,7.9025]
[1740720592208,0.05969908,126.73,126.66,7.9025]
[1740720592608,0.05969908,126.73,126.59,15.13559079]
[1740720592806,0.05969908,126.73,126.6,15.85397347]
[1740720593012,3.8162,126.77,126.61,1.43397347]
[1740720593211,0.05824745,126.67,126.61,1.43397347]
[1740720593413,3.8162,126.77,126.61,1.43397347]
[1740720593608,0.05251574,126.7,126.61,1.43397347]
[1740720594111,0.05609899,126.67,126.61,1.43397347]
[1740720594514,3.8628,126.72,126.61,1.43397347]
[1740720595014,0.05625881,126.68,126.61,1.43397347]
[1740720595215,0.05625881,126.68,126.59,14.42]
[1740720595418,3.8628,126.72,126.59,14.42]
[1740720595715,0.05982781,126.65,126.62,7.9052]
[1740720596109,0.05294332,126.65,126.62,7.9052]
[1740720596710,0.05294332,126.65,126.59,14.42]
[1740720596914,0.05294332,126.65,126.6,1.43427688]
[1740720597418,0.05294332,126.65,126.64,7.9041]
[1740720598416,0.05294332,126.65,126.58,215.56934971]
[1740720598612,0.05294332,126.65,126.59,1.4341319]
[1740720598813,0.05294332,126.65,126.59,15.8541319]
[1740720599017,0.05294332,126.65,126.6,7.9061]
[1740720599210,0.05294332,126.65,126.59,14.42]
[1740720599610,0.05294332,126.65,126.61,7.9056]
[1740720599812,4.17374332,126.65,126.59,14.42]
[1740720600009,4.17374332,126.65,126.62,7.905]
[1740720600212,4.17374332,126.65,126.59,14.42]
[1740720601111,0.05294332,126.65,126.59,14.42]
[1740720601311,4.332e-05,126.65,126.6,2.13733777]
[1740720601517,4.332e-05,126.65,126.64,7.9041]
[1740720602015,4.332e-05,126.65,126.59,14.5722]
[1740720602215,4.332e-05,126.65,126.58,215.56934971]
[1740720602518,4.332e-05,126.65,126.61,0.05964784]